bitfinex/quotes_ETHUSD_20251128
["timestamp","ask_amount","ask_price","bid_price","bid_amount"]
[1764344985860,0.4626,3071.0,3070.9,0.209]
[1764344986590,0.405504,3070.9,3069.5,0.4939]
[1764344986788,0.405504,3070.9,3070.1,0.209]
[1764344986789,0.505304,3070.7,3070.1,0.209]
[1764344987084,0.505304,3070.7,3070.2,0.03257116]
[1764344987085,0.30325173,3070.6,3070.2,0.03257116]
[1764344987278,0.4684,3070.6,3070.1,3.81294205]
[1764344987861,0.4684,3070.6,3070.1,0.55573168]
[1764344988179,0.4684,3070.6,3070.1,0.209]
[1764344988578,0.30330927,3070.5,3070.1,0.209]
[1764344988888,0.4614,3070.2,3070.1,0.209]
[1764344989252,0.9298,3070.2,3070.0,0.001]
[1764344989485,0.505304,3070.4,3070.1,0.208]
[1764344989869,0.1963,3070.8,3070.2,0.03257116]
[1764344990072,0.30334044,3070.7,3070.2,0.03257116]
[1764344990367,0.30334044,3070.6,3070.2,0.03257116]
[1764344990555,3.92119809,3070.8,3070.2,0.03257116]
[1764344990764,0.3033531,3070.7,3070.2,0.03257116]
[1764344991074,0.3033531,3070.6,3070.2,0.03257116]
[1764344991389,0.4684,3070.7,3070.2,3.28968594]
[1764344991577,0.30338517,3070.6,3070.2,3.28968594]
[1764344991780,0.4684,3070.7,3070.2,3.28968594]
[1764344991968,0.70888336,3070.6,3070.2,3.28968594]
[1764344992168,0.405504,3070.6,3070.2,3.28968594]
[1764344992369,0.4684,3070.6,3070.2,3.28968594]
[1764344992770,3.45279331,3070.8,3070.2,3.93271501]
[1764344992771,3.92123245,3070.8,3070.2,3.93271501]
[1764344992978,0.30342259,3070.7,3070.2,3.93271501]
[1764344993186,0.30342259,3070.6,3070.2,3.93271501]
[1764344993370,0.1963,3070.9,3070.2,7.18983181]
[1764344993686,0.30344961,3070.8,3070.2,7.68373181]
[1764344993893,0.1963,3070.9,3070.3,0.82174328]
[1764344994092,0.0012,3071.0,3070.3,0.82174328]
[1764344994093,0.30344334,3070.8,3070.3,1.31564328]
[1764344994282,0.0012,3071.0,3070.3,1.31564328]
[1764344994283,0.406704,3071.0,3070.3,1.31564328]
[1764344994484,0.30346888,3070.9,3070.3,1.31564328]
[1764344994685,0.30346888,3070.8,3070.3,1.31564328]
[1764344994888,0.0012,3071.0,3070.4,0.85054751]
[1764344995073,0.30346867,3070.9,3070.5,0.24056798]
[1764344995258,0.30346867,3070.8,3070.6,6.513385]
[1764344995464,0.0012,3071.0,3070.7,0.03256586]
[1764344995664,0.0012,3071.0,3070.9,0.4858]
[1764344995889,0.0012,3071.0,3070.9,1.47349073]
[1764344996081,0.0012,3071.0,3070.9,1.44092699]
[1764344996288,0.0012,3071.0,3070.9,0.6938]
[1764344997065,0.0012,3071.0,3070.9,1.94585785]
[1764344997261,0.0012,3071.0,3070.9,5.2022322]
[1764344998514,0.0012,3071.0,3070.9,4.7083322]
[1764344998866,0.0012,3071.0,3070.9,5.2022322]
[1764344999172,0.0012,3071.0,3070.9,6.69400347]
[1764344999375,0.0012,3071.0,3070.9,6.66143973]
[1764345000379,0.0012,3071.0,3070.9,6.16753973]
[1764345000575,0.0012,3071.0,3070.9,6.69400347]
[1764345000780,0.0012,3071.0,3070.9,6.66143973]
[1764345000975,0.4626,3071.0,3070.9,0.72559411]
[1764345001170,1.23535942,3071.0,3070.3,3.25701071]
[1764345001374,0.76695942,3071.0,3070.5,6.51359712]
[1764345001604,0.30555942,3071.0,3070.6,0.03256692]
[1764345001903,0.30436171,3070.9,3070.7,6.45900404]
[1764345002075,0.0012,3071.0,3070.7,6.45900404]
[1764345002076,0.0012,3071.0,3070.9,0.4858]
[1764345002266,0.0012,3071.0,3070.8,0.9391119]
[1764345002267,0.30556356,3071.0,3070.8,0.9065471]
[1764345002470,0.0012,3071.0,3070.8,0.2405648]
[1764345002703,0.0012,3071.0,3070.9,0.4858]
[1764345003022,0.002,3071.4,3070.9,0.9797]
[1764345003170,0.002,3071.4,3070.7,0.72559411]
[1764345003505,0.002,3071.4,3070.9,6.5127487]
[1764345003506,0.77265554,3071.3,3070.9,6.5127487]
[1764345003726,0.30425554,3071.2,3071.0,0.88007487]
[1764345003881,0.4684,3071.3,3071.0,0.88007487]
[1764345004201,0.3042656,3071.2,3071.0,0.88007487]
[1764345004417,0.4704,3071.4,3071.0,0.88007487]
[1764345004709,0.30424284,3071.3,3071.0,0.88007487]
[1764345004905,0.30424284,3071.2,3071.1,0.73928236]
[1764345005208,0.30424284,3071.2,3071.1,0.208]
[1764345005410,0.9318,3071.2,3071.1,0.208]
[1764345005609,1.23605453,3071.2,3071.1,0.208]
[1764345006279,1.23605453,3071.2,3070.9,0.03256374]
[1764345006476,0.0328,3071.0,3070.7,3.25654908]
[1764345006679,0.032,3071.0,3070.8,0.859317]
[1764345006880,0.1963,3070.8,3070.4,0.1805]
[1764345007109,0.1963,3070.8,3070.0,3.25826797]
[1764345007110,0.405504,3070.4,3070.0,3.25826797]
[1764345007293,0.405504,3070.4,3070.2,0.208]
[1764345007294,0.33629356,3070.3,3070.2,0.208]
[1764345007989,0.405504,3070.2,3070.1,0.001]
[1764345008193,2.06577818,3070.2,3070.1,0.001]
[1764345008388,2.79137229,3070.2,3070.1,0.001]
[1764345009080,2.46069167,3070.2,3070.1,0.001]
[1764345009280,2.79137229,3070.2,3070.1,0.001]
[1764345009582,6.04848909,3070.2,3070.1,0.001]
[1764345010582,5.71780847,3070.2,3070.1,0.001]
[1764345010781,6.04848909,3070.2,3070.1,0.001]
[1764345011985,0.83598462,3069.9,3069.8,0.001]
[1764345012185,1.80547818,3069.9,3069.8,0.001]
[1764345012407,2.25557818,3069.9,3069.8,0.001]
[1764345013417,1.92489756,3069.9,3069.8,0.001]
[1764345013618,5.18233265,3069.9,3069.8,0.001]
[1764345013801,1.06929356,3069.9,3069.8,0.001]
[1764345014005,0.96949356,3069.9,3069.8,0.001]
[1764345014209,0.77529356,3069.9,3069.8,0.001]
[1764345014512,1.18079756,3069.9,3069.8,0.001]
[1764345014820,4.95923265,3069.9,3069.8,0.209]
[1764345015020,0.405504,3069.7,3069.6,0.001]
[1764345015185,1.30447818,3069.7,3069.6,0.001]
[1764345015385,1.78237818,3069.7,3069.6,0.001]
[1764345015712,5.76561961,3069.7,3069.6,0.001]
[1764345016515,4.60954488,3069.7,3069.6,0.001]
[1764345016895,5.0400255,3069.7,3069.6,0.001]
[1764345017722,4.70934488,3069.7,3069.6,0.001]
[1764345019330,5.0400255,3069.7,3069.6,0.001]
[1764345020492,4.70934488,3069.7,3069.6,0.001]
[1764345022394,5.76561961,3069.7,3069.6,0.001]
[1764345024348,5.70041961,3069.7,3069.6,0.001]
[1764345026301,5.36973899,3069.7,3069.6,0.001]
[1764345027251,5.70041961,3069.7,3069.6,0.001]
[1764345027449,8.47738461,3069.7,3069.6,0.001]
[1764345027651,5.70041961,3069.7,3069.6,0.001]
[1764345030972,8.41982261,3069.7,3069.6,0.001]
[1764345031175,29.80127762,3069.4,3069.3,0.001]
[1764345031315,22.61438167,3069.4,3069.3,0.001]
[1764345031654,23.52276229,3069.4,3069.3,0.001]
[1764345032013,30.91791129,3069.4,3069.3,0.001]
[1764345032247,1.17959411,3069.3,3067.6,0.4932]
[1764345032541,0.88178062,3067.7,3067.6,0.4932]
[1764345032741,1.18607418,3067.7,3067.6,0.4932]
[1764345033039,0.405504,3067.6,3067.4,0.208]
[1764345033244,0.405504,3068.0,3067.4,0.87799114]
[1764345033445,0.405504,3067.8,3067.5,0.4917]
[1764345033610,0.405504,3067.6,3067.5,0.9849]
[1764345033822,0.405504,3067.6,3067.5,0.52579983]
[1764345034020,0.405504,3068.0,3067.5,1.48717042]
[1764345034237,0.405504,3067.8,3067.6,6.45900404]
[1764345034443,0.405504,3068.2,3067.6,6.95220404]
[1764345034646,0.30338341,3068.1,3067.7,0.9849]
[1764345034848,0.6642,3068.6,3067.7,0.9849]
[1764345034849,0.405504,3067.9,3067.7,0.9849]
[1764345035054,0.70888741,3067.8,3067.7,0.4932]
[1764345035251,0.30338341,3067.8,3067.7,0.03259771]
[1764345035431,0.1863,3068.8,3067.7,0.4917]
[1764345035432,0.883404,3068.5,3067.7,0.4917]
[1764345035631,0.405504,3067.7,3067.3,0.03290738]
[1764345035847,0.405504,3067.5,3067.3,0.24090738]
[1764345036041,0.30356567,3067.4,3067.3,0.24090738]
[1764345036428,0.30356567,3067.4,3067.3,1.22580738]
[1764345036622,0.30356567,3067.4,3067.3,0.52460738]
[1764345036829,0.70906967,3067.4,3067.3,0.73260738]
[1764345037144,0.70906967,3067.4,3067.3,0.92390743]
[1764345037331,3.96915964,3067.4,3067.3,0.03290738]
[1764345037536,0.70906967,3067.4,3067.3,0.24090738]
[1764345037837,1.16586967,3067.4,3067.3,0.24090738]
[1764345038354,0.70906967,3067.4,3067.3,0.73260738]
[1764345039660,0.70906967,3067.4,3067.3,1.22580738]
[1764345039862,3.25881205,3068.7,3067.3,8.23068068]
[1764345040077,0.0998,3068.4,3067.4,0.208]
[1764345040233,0.405504,3067.7,3067.4,0.208]
[1764345040956,0.405504,3068.1,3067.6,0.4626]
[1764345041154,0.0998,3068.0,3067.7,0.208]
[1764345041397,0.905204,3067.8,3067.7,0.208]
[1764345042000,0.405504,3067.8,3067.7,0.6706]
[1764345042507,0.405504,3067.7,3067.3,0.03290738]
[1764345042685,0.405504,3068.0,3067.4,1.32059114]
[1764345042885,3.76481636,3068.0,3067.6,0.4626]
[1764345043496,3.76477228,3068.0,3067.6,0.4626]
[1764345043694,0.505304,3068.0,3067.6,0.4626]
[1764345044028,0.505304,3068.2,3067.7,0.4634]
[1764345044382,0.505304,3068.2,3067.4,0.88979203]
[1764345044707,0.505304,3068.2,3067.5,0.88178936]
[1764345044909,0.405504,3068.2,3067.5,0.4634]
[1764345045167,0.405504,3068.2,3067.4,0.88979203]
[1764345045168,0.505304,3068.1,3067.4,0.88979203]
[1764345045438,0.505304,3068.1,3067.4,1.35319203]
[1764345045804,0.405504,3068.1,3067.5,0.4634]
[1764345046010,0.405504,3068.2,3067.5,0.4634]
[1764345046411,0.405504,3068.2,3067.6,0.03259877]
[1764345046615,0.405504,3068.2,3068.1,0.4626]
[1764345046814,0.405504,3068.2,3068.1,0.208]
[1764345047211,3.66474394,3068.2,3068.1,0.208]
[1764345047725,4.73574394,3068.2,3068.1,0.208]
[1764345048039,0.905204,3068.2,3068.1,0.208]
[1764345048239,0.405504,3068.2,3068.1,0.208]
[1764345048538,4.16444394,3068.2,3068.1,0.208]
[1764345048925,3.66474394,3068.2,3068.1,0.208]
[1764345049108,0.405504,3068.2,3068.1,0.727]
[1764345049423,0.405504,3068.2,3068.1,1.1904]
[1764345050443,0.0998,3069.0,3068.1,7.75006527]
[1764345050615,0.4715,3068.9,3068.2,0.208]
[1764345051212,3.73002517,3068.9,3068.2,0.208]
[1764345051412,0.405504,3068.8,3068.2,0.6714]
[1764345051831,0.30385027,3068.7,3068.2,0.6714]
[1764345052034,0.405504,3068.5,3068.2,0.208]
[1764345052209,0.70935427,3068.4,3068.3,0.81012814]
[1764345052749,0.70935427,3068.4,3068.3,0.4626]
[1764345053044,0.405504,3068.3,3068.2,0.208]
[1764345053250,0.70935427,3068.3,3068.2,0.208]
[1764345053411,0.70935427,3068.3,3068.2,0.6706]
[1764345055218,0.70855427,3068.3,3068.2,0.6706]
[1764345055445,0.70855427,3068.3,3068.2,1.06360428]
[1764345055750,0.70855427,3068.3,3068.2,1.52700428]
[1764345056122,0.30385027,3068.3,3068.2,1.52700428]
[1764345056316,0.30385027,3068.3,3068.2,1.06360428]
[1764345056540,0.30385027,3068.3,3068.2,0.6706]
[1764345057256,0.30385027,3068.3,3067.9,3.45461455]
[1764345057257,0.405504,3068.2,3067.3,0.49730738]
[1764345057422,0.405504,3068.0,3067.5,0.208]
[1764345057622,0.44515027,3068.1,3067.3,0.03390738]
[1764345057623,0.405504,3067.8,3067.3,0.03390738]
[1764345057824,0.405504,3067.6,3067.4,0.208]
[1764345058051,1.20905427,3067.5,3067.4,0.208]
[1764345058255,0.70935427,3067.5,3067.4,0.208]
[1764345058553,0.70935427,3067.5,3067.4,0.6706]
[1764345060839,0.30385027,3067.5,3067.4,1.9386892]
[1764345061165,0.30385027,3067.5,3067.4,5.19877917]
[1764345061956,0.30385027,3067.5,3067.4,1.90608831]
[1764345062124,0.30385027,3067.5,3067.4,1.134]
[1764345062327,0.30385027,3067.5,3067.4,0.926]
[1764345062530,0.30385027,3067.5,3067.4,0.6706]
[1764345063041,0.30385027,3067.5,3067.4,0.6716]
[1764345063245,0.30385027,3067.5,3067.4,4.39508997]
[1764345063553,0.30385027,3067.5,3067.4,1.11449973]
[1764345063852,0.30385027,3067.5,3067.4,0.4636]
[1764345064157,0.30385027,3067.5,3067.4,0.6716]
[1764345065028,0.30385027,3067.5,3067.4,4.42769086]
[1764345067968,0.30482921,3067.5,3067.4,4.42769086]
[1764345068559,1.21003321,3067.5,3067.4,0.001]
[1764345068872,1.78133321,3067.5,3067.4,0.001]
[1764345069046,1.78133321,3067.5,3067.4,0.209]
[1764345069449,4.94151691,3067.5,3067.4,0.209]
[1764345069645,0.71033321,3067.5,3067.4,0.6716]
[1764345069846,0.71033321,3067.5,3067.4,1.06817952]
[1764345070159,1.21003321,3067.5,3067.4,0.001]
[1764345070360,1.68153321,3067.5,3067.4,0.001]
[1764345070663,1.68153321,3067.5,3067.4,0.209]
[1764345071190,5.04131691,3067.5,3067.4,0.001]
[1764345071432,6.09759164,3067.5,3067.4,0.001]
[1764345071672,24.86287264,3067.5,3067.4,0.001]
[1764345071875,10.60005673,3067.4,3067.3,0.03390738]
[1764345072078,7.51278394,3067.4,3067.3,0.03390738]
[1764345072285,6.70414294,3067.4,3067.3,0.03390738]
[1764345072950,32.49310794,3067.4,3067.3,0.03390738]
[1764345073375,4.27098462,3067.1,3066.7,0.37844353]
[1764345073545,32.20977873,3066.8,3066.7,0.37844353]
[1764345073758,14.98641694,3066.8,3066.7,0.17634353]
[1764345073960,2.27541383,3066.8,3066.7,0.17634353]
[1764345074177,3.00100794,3066.8,3066.7,0.17634353]
[1764345074396,6.45091594,3066.8,3066.7,0.17634353]
[1764345074566,3.00100794,3066.8,3066.7,0.17634353]
[1764345074951,19.23735694,3066.8,3066.7,0.17634353]
[1764345075179,18.17250094,3066.8,3066.7,0.17634353]
[1764345075480,20.29862873,3066.8,3066.7,0.17634353]
[1764345075703,5.68875511,3066.8,3066.7,0.17634353]
[1764345075867,6.11923573,3066.8,3066.7,0.17634353]
[1764345076281,5.61393173,3066.8,3066.7,0.17634353]
[1764345076595,6.11923573,3066.8,3066.7,0.17634353]
[1764345076754,30.42825673,3066.8,3066.7,0.17634353]
[1764345077150,6.11923573,3066.8,3066.7,0.17634353]
[1764345077385,33.17042611,3066.8,3066.7,0.17634353]
[1764345077654,1.13109811,3066.7,3064.7,0.1877]
[1764345077964,1.13109811,3066.7,3063.2,3.264471]
[1764345077965,0.405504,3064.4,3064.1,0.58612893]
[1764345078355,0.405504,3064.4,3064.1,0.39152893]
[1764345079099,0.405504,3064.4,3064.1,0.59952893]
[1764345079305,0.2277,3064.8,3064.3,0.4577]
[1764345079504,0.2277,3064.8,3064.1,1.28902893]
[1764345079505,0.405504,3064.7,3064.1,0.79412893]
[1764345079706,0.405504,3064.7,3064.1,1.28902893]
[1764345079879,0.405504,3064.7,3064.1,0.77082893]
[1764345080069,0.0998,3064.5,3064.1,0.77082893]
[1764345080494,0.405504,3064.9,3064.4,0.4577]
[1764345080910,0.405504,3065.1,3064.5,0.4949]
[1764345081124,0.30229715,3065.2,3064.8,0.4577]
[1764345081268,0.688,3064.9,3064.4,0.208]
[1764345081476,0.405504,3064.8,3064.4,0.208]
[1764345081681,0.405504,3065.2,3064.4,0.208]
[1764345081880,0.0998,3065.1,3064.4,0.208]
[1764345082076,0.40197513,3065.1,3064.4,0.208]
[1764345082776,0.405504,3064.4,3064.1,0.56282893]
[1764345082977,0.405504,3064.4,3064.2,0.208]
[1764345083523,0.405504,3064.4,3064.1,0.39152893]
[1764345083524,0.405504,3064.2,3064.1,0.39152893]
[1764345083681,4.28877916,3064.2,3064.1,0.39152893]
[1764345083881,4.78367916,3064.2,3064.1,0.39152893]
[1764345084180,5.08555435,3064.2,3064.1,0.39152893]
[1764345084598,0.99647919,3064.2,3064.1,0.39152893]
[1764345084928,0.505304,3064.2,3064.1,0.39152893]
[1764345085079,0.72559411,3064.4,3064.1,0.39152893]
[1764345085080,0.405504,3064.4,3064.1,0.39152893]
[1764345085915,3.66847409,3064.7,3064.1,0.56282893]
[1764345086128,0.4972,3064.2,3064.1,0.39152893]
[1764345086421,1.002504,3064.2,3064.1,0.39152893]
[1764345086656,1.497404,3064.2,3064.1,0.39152893]
[1764345086840,2.12952786,3064.2,3064.1,0.39152893]
[1764345087869,6.11861651,3064.2,3064.1,0.39152893]
[1764345089222,15.52909651,3064.2,3064.1,0.39152893]
[1764345089422,15.19841589,3064.2,3064.1,0.39152893]
[1764345089653,13.25081789,3064.2,3064.1,0.39152893]
[1764345089845,13.58149851,3064.2,3064.1,0.39152893]
[1764345090164,8.68636251,3064.2,3064.1,0.39152893]
[1764345090319,6.11861651,3064.2,3064.1,0.39152893]
[1764345090519,5.78793589,3064.2,3064.1,0.39152893]
[1764345090741,6.11861651,3064.2,3064.1,0.39152893]
[1764345091122,5.62371651,3064.2,3064.1,0.39152893]
[1764345092045,6.11861651,3064.2,3064.1,0.39152893]
[1764345092358,5.12651651,3064.2,3064.1,0.39152893]
[1764345092562,0.30144324,3064.2,3064.1,1.02052893]
[1764345092718,0.0998,3064.2,3064.1,1.02052893]
[1764345092922,0.30144324,3064.6,3064.1,1.02052893]
[1764345093149,0.30144324,3064.5,3064.1,1.51542893]
[1764345093417,0.405504,3064.5,3064.1,1.51542893]
[1764345093622,0.30144324,3064.6,3064.4,0.4577]
[1764345093837,0.30144324,3064.9,3064.5,0.4577]
[1764345094016,0.30144324,3064.9,3064.2,0.4949]
[1764345094017,0.0998,3065.0,3064.6,0.4577]
[1764345094228,0.30144324,3064.9,3064.6,0.4577]
[1764345094844,0.30144324,3064.9,3064.6,1.1616]
[1764345095044,0.0998,3065.0,3064.8,0.4577]
[1764345095354,0.70694724,3064.9,3064.8,0.4577]
[1764345095739,0.7039,3065.8,3064.8,0.9526]
[1764345095939,0.0998,3065.4,3064.9,0.4577]
[1764345096119,0.30161609,3065.3,3064.9,0.4577]
[1764345096319,0.30161609,3065.2,3065.0,0.37205442]
[1764345096523,0.30161609,3065.8,3065.2,0.4577]
[1764345096739,0.30161609,3065.7,3065.3,0.4036]
[1764345096944,0.30161609,3065.6,3065.2,0.4577]
[1764345097125,0.4972,3065.3,3064.4,0.4949]
[1764345097325,0.405504,3065.1,3064.5,0.209]
[1764345097524,0.405504,3065.1,3064.5,0.67828822]
[1764345097745,0.80741886,3065.7,3065.0,0.4577]
[1764345097928,0.30211486,3065.6,3065.1,0.209]
[1764345098239,0.30211486,3065.5,3065.1,0.4036]
[1764345098555,0.70761886,3065.4,3065.1,0.4036]
[1764345098727,0.405504,3065.2,3065.1,0.4036]
[1764345099055,0.70761886,3065.2,3065.1,0.4036]
[1764345099266,1.20481886,3065.2,3064.5,1.19488233]
[1764345099427,0.70761886,3065.1,3065.0,0.209]
[1764345099929,0.405504,3065.0,3063.5,3.26416137]
[1764345100129,0.405504,3064.8,3064.2,1.42949411]
[1764345100346,0.405504,3064.6,3064.2,1.42949411]
[1764345100550,0.405504,3064.4,3064.3,0.4949]
[1764345100829,3.26234631,3065.3,3064.3,0.4949]
[1764345101045,0.405504,3065.1,3064.4,0.4575]
[1764345101247,0.30305109,3065.0,3064.4,0.64619941]
[1764345101454,0.05,3066.8,3064.4,0.64619941]
[1764345101455,0.05,3066.8,3064.5,0.4575]
[1764345101637,0.0998,3066.6,3065.4,6.76766527]
[1764345101839,0.0998,3066.6,3065.5,0.86]
[1764345102047,0.002,3065.7,3065.6,3.98759828]
[1764345102332,0.002,3065.7,3065.6,11.56623465]
[1764345102665,0.002,3065.7,3065.6,12.02373465]
[1764345102870,0.002,3065.7,3065.6,0.6665]
[1764345103166,0.002,3065.7,3064.3,0.001]
[1764345103167,0.9614,3065.7,3064.3,0.001]
[1764345103335,0.002,3065.7,3065.2,0.1935]
[1764345103538,0.404704,3065.3,3065.2,0.208]
[1764345104130,0.002,3065.7,3065.2,0.6655]
[1764345105288,0.002,3065.7,3065.6,0.4575]
[1764345105625,0.002,3065.7,3065.6,0.915]
[1764345106252,0.002,3065.7,3065.6,1.123]
[1764345106454,0.002,3065.7,3065.6,0.6655]
[1764345106660,0.002,3065.7,3065.6,0.208]
[1764345106860,0.002,3065.7,3065.3,0.4575]
[1764345107061,0.002,3065.7,3065.6,0.208]
[1764345107262,0.002,3065.7,3065.6,0.6655]
[1764345107563,0.002,3065.7,3065.6,1.123]
[1764345107768,0.002,3065.7,3065.6,1.91206653]
[1764345108448,0.002,3065.7,3065.6,5.1740707]
[1764345108645,0.002,3065.7,3065.6,1.91206653]
[1764345108844,0.002,3065.7,3065.3,6.47725617]
[1764345109061,0.002,3065.7,3065.4,0.4575]
[1764345109262,0.002,3065.7,3065.5,0.208]
[1764345109459,0.002,3065.7,3065.1,3.48865177]
[1764345109779,0.002,3065.7,3065.2,0.208]
[1764345109978,0.002,3065.7,3065.6,0.4575]
[1764345110567,0.002,3065.7,3065.6,0.915]
[1764345110878,0.002,3065.7,3065.6,4.17700417]
[1764345111083,0.002,3065.7,3065.6,0.915]
[1764345111261,0.002,3065.7,3065.6,4.17700417]
[1764345111461,0.002,3065.7,3065.6,1.65891921]
[1764345111672,0.002,3065.7,3065.6,4.17700417]
[1764345115282,0.002,3065.7,3065.6,4.38500417]
[1764345115587,0.002,3065.7,3065.6,5.14321832]
[1764345115763,0.405504,3066.4,3065.7,0.72559411]
[1764345115970,0.405504,3066.4,3065.9,6.47725617]
[1764345116283,0.70832369,3066.8,3066.1,3.26147222]
[1764345116484,0.30281969,3066.7,3066.1,6.98044444]
[1764345116716,0.4936,3067.3,3066.3,6.47725617]
[1764345116920,0.01,3067.0,3066.6,0.4575]
[1764345117093,0.30280238,3066.9,3066.0,3.7190282]
[1764345117417,0.30280238,3066.9,3066.0,0.72559411]
[1764345117418,0.405504,3066.7,3066.0,0.72559411]
[1764345117622,0.405504,3066.5,3066.1,0.208]
[1764345117915,0.405504,3066.5,3066.2,0.208]
[1764345118120,0.405504,3066.3,3065.2,1.27173725]
[1764345118318,0.405504,3066.1,3065.3,1.00224934]
[1764345118614,0.405504,3066.1,3065.4,0.03262217]
[1764345118996,0.405504,3065.9,3065.3,5.4476238]
[1764345119412,0.405504,3065.9,3065.3,5.44473748]
[1764345119722,0.405504,3065.9,3065.4,0.208]
[1764345119889,0.405504,3065.9,3065.4,0.75247375]
[1764345120094,0.405504,3065.9,3065.4,1.20997375]
[1764345120282,0.505304,3066.2,3065.5,3.75219658]
[1764345120487,0.405504,3066.0,3065.5,6.96737727]
[1764345120711,0.405504,3066.0,3065.5,10.19684145]
[1764345120922,0.405504,3066.3,3065.9,0.4575]
[1764345121226,0.30341254,3066.2,3066.0,0.208]
[1764345121404,0.405504,3066.8,3066.0,0.24061578]
[1764345121587,0.30360434,3066.7,3066.1,0.4575]
[1764345121784,0.002,3066.2,3066.1,0.4575]
[1764345121990,0.002,3066.2,3066.1,1.40472562]
[1764345122290,0.002,3066.2,3066.1,5.12369784]
[1764345123402,0.002,3066.6,3066.1,12.37223639]
[1764345123709,0.002,3066.6,3066.5,7.66035028]
[1764345123908,0.002,3066.6,3066.5,8.32585028]
[1764345124140,0.002,3066.6,3066.5,9.15843531]
[1764345124524,0.002,3066.6,3066.5,12.4194821]
[1764345126515,3.95057391,3067.7,3066.6,0.72559411]
[1764345126516,0.1972,3067.7,3066.6,0.72559411]
[1764345126719,0.405504,3067.5,3066.7,0.208]
[1764345126919,0.405504,3067.3,3066.7,0.208]
[1764345127150,0.405504,3067.3,3066.7,1.73030289]
[1764345127922,0.404704,3067.3,3066.7,1.73030289]
[1764345128735,0.404704,3067.3,3066.7,4.99113701]
[1764345129050,0.404704,3067.3,3066.7,4.99113303]
[1764345129562,0.404704,3067.3,3066.7,8.25196715]
[1764345130239,0.404704,3067.3,3066.7,4.99113303]
[1764345130754,0.87442364,3067.2,3066.8,0.208]
[1764345130951,0.405504,3066.7,3065.7,6.47725617]
[1764345131126,0.303868,3066.6,3065.6,3.75390417]
[1764345131458,0.405504,3066.4,3065.7,0.208]
[1764345131680,0.405504,3066.2,3065.8,0.24061791]
[1764345131886,0.405504,3066.5,3065.8,0.64007012]
[1764345132071,0.30393569,3066.4,3065.9,0.208]
[1764345132382,0.505304,3066.2,3065.5,0.72559411]
[1764345132582,0.405504,3066.0,3065.5,3.98766647]
[1764345132879,0.405504,3066.2,3065.6,0.24062004]
[1764345133190,0.405504,3066.0,3065.6,0.24062004]
[1764345133401,0.4709,3066.3,3065.4,6.47725617]
[1764345133402,0.405504,3066.2,3065.4,6.47725617]
[1764345133688,0.405504,3066.0,3065.3,0.001]
[1764345133854,0.30405752,3065.9,3065.5,0.208]
[1764345134050,0.405504,3065.7,3065.5,0.208]
[1764345134798,0.405504,3066.2,3065.6,0.4923]
[1764345134956,0.405504,3066.0,3065.6,0.52492004]
[1764345135150,0.405504,3065.8,3065.6,0.52492004]
[1764345135491,0.30407893,3065.7,3065.6,0.52492004]
[1764345135692,0.30407893,3065.7,3065.6,0.208]
[1764345135992,0.30407893,3065.7,3065.3,0.001]
[1764345135993,0.405504,3065.6,3065.3,0.001]
[1764345136158,0.405504,3065.6,3065.4,0.208]
[1764345138151,0.405504,3065.4,3065.3,0.001]
[1764345138360,0.405504,3065.4,3065.3,0.209]
[1764345138565,0.405504,3065.5,3065.3,0.209]
[1764345138976,0.405504,3065.5,3065.4,0.208]
[1764345139382,0.70951535,3065.5,3065.4,0.208]
[1764345139578,0.70951535,3065.5,3065.4,0.73292217]
[1764345139859,3.26086291,3066.7,3065.4,8.10169422]
[1764345140087,0.77482074,3066.6,3065.8,6.47725617]
[1764345140294,0.30392074,3066.5,3065.9,0.24061684]
[1764345140462,0.30392074,3066.4,3065.9,0.24061684]
[1764345140659,0.30392074,3066.3,3065.9,0.208]
[1764345140862,0.30392074,3066.2,3065.9,0.208]
[1764345141064,0.30392074,3066.1,3065.9,4.18648946]
[1764345141402,0.405504,3065.7,3065.3,0.001]
[1764345141703,0.405504,3065.5,3065.4,0.209]
[1764345141878,0.70935041,3065.5,3065.4,0.209]
[1764345142066,1.66065041,3065.5,3065.4,0.209]
[1764345142899,1.18875041,3065.5,3065.4,0.209]
[1764345143398,1.66065041,3065.5,3065.4,0.209]
[1764345144070,1.66065041,3065.5,3065.4,0.001]
[1764345144272,1.66065041,3065.5,3065.4,0.209]
[1764345144483,1.66065041,3065.5,3065.4,0.001]
[1764345145186,1.66065041,3065.5,3065.4,0.209]
[1764345145393,1.18875041,3065.5,3065.4,0.209]
[1764345145575,0.70935041,3065.5,3065.4,0.209]
[1764345146004,0.70935041,3065.5,3065.4,0.6685]
[1764345146182,0.405504,3066.0,3065.4,0.6685]
[1764345146502,0.30348714,3065.9,3065.5,0.0326211]
[1764345146710,0.4719,3066.5,3065.8,0.4595]
[1764345147011,0.30349817,3066.4,3065.9,0.208]
[1764345147190,0.70900217,3066.3,3065.9,0.208]
[1764345147394,0.30349817,3066.2,3065.9,3.46968498]
[1764345147580,3.92450773,3066.8,3065.9,4.14282263]
[1764345147795,0.7754761,3066.7,3065.9,4.14282263]
[1764345148108,0.0998,3066.3,3065.9,0.208]
[1764345148313,0.405504,3066.1,3065.9,0.208]
[1764345149012,0.40350284,3066.3,3065.9,0.208]
[1764345149185,0.405504,3065.9,3065.5,3.26206655]
[1764345149385,0.405504,3065.9,3065.6,0.208]
[1764345149584,0.592104,3065.9,3065.6,0.55510666]
[1764345150008,0.405504,3066.0,3065.6,0.55510666]
[1764345150782,0.405504,3066.2,3065.6,1.0710267]
[1764345150985,0.405504,3066.2,3065.7,0.4833]
[1764345151178,0.70932959,3066.7,3066.1,3.72094888]
[1764345151384,0.4719,3067.8,3066.7,0.4595]
[1764345151593,0.30387941,3067.2,3066.8,0.6675]
[1764345151792,0.405504,3067.0,3066.8,0.6675]
[1764345152322,0.4719,3067.6,3066.8,0.208]
[1764345152517,0.3038635,3067.2,3066.8,0.87652562]